[Event "Kragero Resort B 2020"]
[Site "Kragero"]
[Date "2020.02.19"]
[Round "1.9"]
[White "Lie, Terje"]
[Black "Seo, Jung Hyun"]
[Result "0-1"]
[ECO "D37"]
[WhiteElo "1540"]
[BlackElo "1816"]
[Annotator "NA"]
[PlyCount "106"]
[EventDate "2020.02.19"]
[EventType "swiss"]
[EventCountry "NOR"]
[SourceTitle "playchess.com"]
[Source "ChessBase"]
[SourceQuality "1"]
[TimeControl "5400+30"]

1. d4 {[%emt 0:00:00]} d5 {[%emt 0:00:00]} 2. c4 {[%emt 0:00:00]} e6 {[%emt 0:00:00]} 3. Nf3 {[%emt 0:00:00]} Nf6 {[%emt 0:00:00]} 4. Nc3 {[%emt 0:00:00]} Be7 {[%emt 0:00:00]} 5. e3 {[%emt 0:00:00]} O-O {[%emt 0:00:05]} 6. Qc2 {[%emt 0:00:00]} Nbd7 {[%emt 0:01:56]} 7. cxd5 {[%emt 0:00:34]} exd5 {[%emt 0:00:12]} 8. Be2 {[%emt 0:00:12]} c6 {[%emt 0:00:08]} 9. O-O {[%emt 0:00:36]} Re8 {[%emt 0:00:48]} 10. a3 {[%emt 0:01:22]} a5 {[%emt 0:01:50]} 11. a4 {[%emt 0:00:55]} Nf8 {[%emt 0:03:50]} 12. Ne5 {[%emt 0:01:33]} Ng6 {[%emt 0:02:27]} 13. Nxg6 {[%emt 0:02:29]} hxg6 {[%emt 0:00:10]} 14. Bf3 {[%emt 0:00:35]} Bf5 {[%emt 0:03:25]} 15. Qd1 {[%emt 0:01:14]} Bd6 {[%emt 0:03:48]} 16. h3 {[%emt 0:01:15]} Kh7 {[%emt 0:05:41]} 17. b3 {[%emt 0:02:17]} Qe7 {[%emt 0:02:56]} 18. g4 {[%emt 0:03:52]} Be4 {[%emt 0:01:34]} 19. Kg2 {[%emt 0:00:45]} Rh8 {[%emt 0:02:32]} 20. Rh1 {[%emt 0:00:11]} Kg8 {[%emt 0:01:22]} 21. Bb2 {[%emt 0:00:22]} Ra6 {[%emt 0:11:11]} 22. Nxe4 {[%emt 0:05:03]} Nxe4 {[%emt 0:01:02]} 23. Qc2 {[%emt 0:00:11]} Ng5 {[%emt 0:11:31]} 24. Rab1 {[%emt 0:01:26]} Nxf3 {[%emt 0:00:11]} 25. Kxf3 {[%emt 0:00:13]} Ra8 {[%emt 0:02:12]} 26. e4 {[%emt 0:02:25]} dxe4+ {[%emt 0:01:53]} 27. Qxe4 {[%emt 0:00:19]} Qxe4+ {[%emt 0:00:02]} 28. Kxe4 {[%emt 0:00:14]} Re8+ {[%emt 0:00:02]} 29. Kf3 {[%emt 0:00:34]} Bb4 {[%emt 0:00:31]} 30. Rbd1 {[%emt 0:00:50]} Rd8 {[%emt 0:00:39]} 31. Rd3 {[%emt 0:01:46]} f6 {[%emt 0:01:22]} 32. Kf4 {[%emt 0:00:46]} Kf7 {[%emt 0:01:14]} 33. Kf3 {[%emt 0:03:40]} Rd5 {[%emt 0:00:20]} 34. h4 {[%emt 0:00:49]} Be7 {[%emt 0:04:44]} 35. Kg3 {[%emt 0:01:10]} Bd6+ {[%emt 0:00:08]} 36. f4 {[%emt 0:00:59]} g5 {[%emt 0:01:02]} 37. Bc1 {[%emt 0:00:23]} gxf4+ {[%emt 0:01:11]} 38. Bxf4 {[%emt 0:00:19]} Bxf4+ {[%emt 0:00:02]} 39. Kxf4 {[%emt 0:00:12]} g5+ {[%emt 0:00:05]} 40. Kg3 {[%emt 0:00:29]} gxh4+ {[%emt 0:00:22]} 41. Kh3 {[%emt 0:01:11]} c5 {[%emt 0:01:50]} 42. Rhd1 {[%emt 0:00:21]} Rhd8 {[%emt 0:00:24]} 43. Kxh4 {[%emt 0:00:26]} Rxd4 {[%emt 0:00:04]} 44. Rxd4 {[%emt 0:00:38]} Rxd4 {[%emt 0:04:03]} 45. Rxd4 {[%emt 0:00:09]} cxd4 {[%emt 0:00:04]} 46. Kg3 {[%emt 0:00:07]} Ke6 {[%emt 0:00:24]} 47. Kf4 {[%emt 0:00:28]} Kd5 {[%emt 0:00:08]} 48. Kf3 {[%emt 0:00:31]} Ke5 {[%emt 0:00:04]} 49. Kf2 {[%emt 0:00:29]} Ke4 {[%emt 0:00:08]} 50. Ke2 {[%emt 0:00:06]} d3+ {[%emt 0:00:16]} 51. Kd2 {[%emt 0:01:23]} Kd4 {[%emt 0:00:03]} 52. Kd1 {[%emt 0:00:39]} Kc3 {[%emt 0:00:11]} 53. Kc1 {[%emt 0:00:09]} b6 {[%emt 0:00:06]} 0-1

[Event "Kragero Resort B 2020"]
[Site "Kragero"]
[Date "2020.02.19"]
[Round "1.10"]
[White "Westrum, Kim Roger Hansen"]
[Black "Gronn, Embla Ekeland"]
[Result "1-0"]
[ECO "B11"]
[WhiteElo "1809"]
[BlackElo "1513"]
[Annotator "NA"]
[PlyCount "71"]
[EventDate "2020.02.19"]
[EventType "swiss"]
[EventCountry "NOR"]
[SourceTitle "playchess.com"]
[Source "ChessBase"]
[SourceQuality "1"]
[TimeControl "5400+30"]

1. e4 {[%emt 0:00:00]} c6 {[%emt 0:00:00]} 2. Nf3 {[%emt 0:00:00]} d5 {[%emt 0:00:00]} 3. Nc3 {[%emt 0:00:00]} Bg4 {[%emt 0:00:02]} 4. h3 {[%emt 0:00:00]} Bxf3 {[%emt 0:00:26]} 5. Qxf3 {[%emt 0:00:14]} e6 {[%emt 0:00:39]} 6. d4 {[%emt 0:00:23]} Bb4 {[%emt 0:06:55]} 7. exd5 {[%emt 0:15:31]} cxd5 {[%emt 0:02:14]} 8. a3 {[%emt 0:01:06]} Ba5 {[%emt 0:00:38]} 9. Qg3 {[%emt 0:05:19]} Qf6 {[%emt 0:06:47]} 10. b4 {[%emt 0:14:02]} Bb6 {[%emt 0:02:24]} 11. Nb5 {[%emt 0:00:25]} Nc6 {[%emt 0:19:48]} 12. Bg5 {[%emt 0:08:12]} Qg6 {[%emt 0:04:12]} 13. Bd3 {[%emt 0:01:50]} f5 {[%emt 0:05:48]} 14. c3 {[%emt 0:12:46]} h6 {[%emt 0:06:40]} 15. Bf4 {[%emt 0:02:01]} Qxg3 {[%emt 0:00:33]} 16. Bxg3 {[%emt 0:00:10]} Nd8 {[%emt 0:10:10]} 17. a4 {[%emt 0:03:06]} a6 {[%emt 0:00:48]} 18. Bc7 {[%emt 0:00:22]} Ba7 {[%emt 0:05:36]} 19. Nxa7 {[%emt 0:06:02]} Rxa7 {[%emt 0:00:07]} 20. O-O {[%emt 0:00:15]} Nf6 {[%emt 0:02:07]} 21. a5 {[%emt 0:07:42]} Ra8 {[%emt 0:03:54]} 22. b5 {[%emt 0:01:49]} O-O {[%emt 0:03:52]} 23. bxa6 {[%emt 0:01:45]} bxa6 {[%emt 0:00:43]} 24. Rfc1 {[%emt 0:02:16]} Rf7 {[%emt 0:02:20]} 25. Bxd8 {[%emt 0:00:46]} Rxd8 {[%emt 0:00:08]} 26. Bxa6 {[%emt 0:00:08]} Ra7 {[%emt 0:01:31]} 27. Bd3 {[%emt 0:01:47]} Rb8 {[%emt 0:05:26]} 28. a6 {[%emt 0:01:13]} Ne4 {[%emt 0:01:35]} 29. Rab1 {[%emt 0:02:18]} Rc8 {[%emt 0:04:48]} 30. Rb3 {[%emt 0:05:45]} Nd6 {[%emt 0:01:16]} 31. Rcb1 {[%emt 0:01:48]} Nc4 {[%emt 0:01:50]} 32. Rb8 {[%emt 0:00:52]} Rxb8 {[%emt 0:00:17]} 33. Rxb8+ {[%emt 0:00:05]} Kh7 {[%emt 0:00:05]} 34. Bxc4 {[%emt 0:00:21]} dxc4 {[%emt 0:00:09]} 35. Rb6 {[%emt 0:00:06]} Rc7 {[%emt 0:02:48]} 36. Rxe6 {[%emt 0:00:48]} 1-0

[Event "Kragero Resort B 2020"]
[Site "Kragero"]
[Date "2020.02.19"]
[Round "1.11"]
[White "Bronmo, Askild Skovgaard"]
[Black "Strand, Amund Pihl"]
[Result "0-1"]
[ECO "D58"]
[WhiteElo "1500"]
[BlackElo "1806"]
[Annotator "NA"]
[PlyCount "64"]
[EventDate "2020.02.19"]
[EventType "swiss"]
[EventCountry "NOR"]
[SourceTitle "playchess.com"]
[Source "ChessBase"]
[SourceQuality "1"]
[TimeControl "5400+30"]

1. d4 {[%emt 0:00:00]} d5 {[%emt 0:06:26]} 2. c4 {[%emt 0:00:00]} e6 {[%emt 0:00:05]} 3. Nc3 {[%emt 0:00:00]} Be7 {[%emt 0:00:05]} 4. Nf3 {[%emt 0:00:22]} Nf6 {[%emt 0:00:24]} 5. Bg5 {[%emt 0:00:10]} O-O {[%emt 0:00:12]} 6. e3 {[%emt 0:00:09]} h6 {[%emt 0:00:07]} 7. Bh4 {[%emt 0:00:05]} b6 {[%emt 0:00:24]} 8. cxd5 {[%emt 0:03:17]} exd5 {[%emt 0:00:39]} 9. Bd3 {[%emt 0:03:01]} Bb7 {[%emt 0:01:54]} 10. O-O {[%emt 0:01:19]} Ne4 {[%emt 0:04:31]} 11. Bxe7 {[%emt 0:00:42]} Qxe7 {[%emt 0:00:03]} 12. Qc2 {[%emt 0:03:25]} Nd7 {[%emt 0:05:14]} 13. Rac1 {[%emt 0:10:26]} Rfc8 {[%emt 0:05:31]} 14. Qb3 {[%emt 0:02:50]} Ndf6 {[%emt 0:02:16]} 15. Rfd1 {[%emt 0:08:56]} c5 {[%emt 0:06:53]} 16. Bxe4 {[%emt 0:04:22]} dxe4 {[%emt 0:02:05]} 17. Ne5 {[%emt 0:01:17]} cxd4 {[%emt 0:06:15]} 18. exd4 {[%emt 0:00:56]} Rd8 {[%emt 0:03:53]} 19. h3 {[%emt 0:06:42]} Rac8 {[%emt 0:05:38]} 20. Nb5 {[%emt 0:14:04]} a6 {[%emt 0:11:16]} 21. Rxc8 {[%emt 0:03:48]} Rxc8 {[%emt 0:00:13]} 22. Nd6 {[%emt 0:04:45]} Rc7 {[%emt 0:14:05]} 23. Qxb6 {[%emt 0:02:14]} Nd5 {[%emt 0:02:47]} 24. Qa7 {[%emt 0:04:55]} Qxd6 {[%emt 0:00:48]} 25. Qb8+ {[%emt 0:00:27]} Qf8 {[%emt 0:01:40]} 26. Qxf8+ {[%emt 0:02:51]} Kxf8 {[%emt 0:00:02]} 27. Re1 {[%emt 0:00:17]} Nb4 {[%emt 0:01:13]} 28. a3 {[%emt 0:00:38]} Nd3 {[%emt 0:00:08]} 29. Nxd3 {[%emt 0:00:18]} exd3 {[%emt 0:00:05]} 30. Rd1 {[%emt 0:00:02]} Be4 {[%emt 0:00:09]} 31. f3 {[%emt 0:00:25]} Bh7 {[%emt 0:00:10]} 32. Rd2 {[%emt 0:00:47]} Rc2 {[%emt 0:00:45]} 0-1

[Event "Kragero Resort B 2020"]
[Site "Kragero"]
[Date "2020.02.19"]
[Round "1.12"]
[White "Skogli, Paal"]
[Black "Myagmarsuren, Evsuld"]
[Result "0-1"]
[ECO "B21"]
[WhiteElo "1801"]
[BlackElo "1497"]
[Annotator "NA"]
[PlyCount "74"]
[EventDate "2020.02.19"]
[EventType "swiss"]
[EventCountry "NOR"]
[SourceTitle "playchess.com"]
[Source "ChessBase"]
[SourceQuality "1"]
[TimeControl "5400+30"]

1. e4 {[%emt 0:00:00]} c5 {[%emt 0:00:00]} 2. d4 {[%emt 0:00:00]} cxd4 {[%emt 0:00:38]} 3. c3 {[%emt 0:00:01]} dxc3 {[%emt 0:01:34]} 4. Nxc3 {[%emt 0:00:50]} e6 {[%emt 0:01:26]} 5. Nf3 {[%emt 0:00:02]} Bc5 {[%emt 0:03:48]} 6. Bc4 {[%emt 0:00:10]} d6 {[%emt 0:03:50]} 7. O-O {[%emt 0:00:05]} Nd7 {[%emt 0:00:16]} 8. Qe2 {[%emt 0:00:38]} Qc7 {[%emt 0:00:42]} 9. Bf4 {[%emt 0:00:21]} a6 {[%emt 0:00:24]} 10. Rac1 {[%emt 0:00:16]} Ne7 {[%emt 0:00:52]} 11. Rfd1 {[%emt 0:00:13]} b5 {[%emt 0:01:31]} 12. Bxb5 {[%emt 0:04:18]} axb5 {[%emt 0:02:25]} 13. Nxb5 {[%emt 0:00:04]} Qb6 {[%emt 0:00:34]} 14. Nxd6+ {[%emt 0:02:45]} Bxd6 {[%emt 0:00:29]} 15. Bxd6 {[%emt 0:01:12]} Qa6 {[%emt 0:04:06]} 16. Qd2 {[%emt 0:00:38]} Ra7 {[%emt 0:04:13]} 17. Bxe7 {[%emt 0:03:05]} Kxe7 {[%emt 0:00:15]} 18. Qg5+ {[%emt 0:00:05]} Ke8 {[%emt 0:01:57]} 19. Qxg7 {[%emt 0:00:58]} Rf8 {[%emt 0:00:27]} 20. Rd6 {[%emt 0:03:21]} Qxd6 {[%emt 0:01:36]} 21. Rxc8+ {[%emt 0:03:25]} Ke7 {[%emt 0:00:09]} 22. Rc1 {[%emt 0:03:44]} Qf4 {[%emt 0:02:30]} 23. Rd1 {[%emt 0:01:12]} Nf6 {[%emt 0:02:58]} 24. e5 {[%emt 0:01:26]} Ne4 {[%emt 0:01:08]} 25. Qxh7 {[%emt 0:03:38]} Rxa2 {[%emt 0:01:38]} 26. Re1 {[%emt 0:00:41]} Ng5 {[%emt 0:01:19]} 27. Nxg5 {[%emt 0:00:02]} Qxg5 {[%emt 0:00:24]} 28. Qb1 {[%emt 0:03:35]} Rfa8 {[%emt 0:00:20]} 29. Qd1 {[%emt 0:00:35]} Kf8 {[%emt 0:02:56]} 30. f4 {[%emt 0:04:12]} Qxf4 {[%emt 0:04:19]} 31. Qd6+ {[%emt 0:00:39]} Kg8 {[%emt 0:00:43]} 32. g3 {[%emt 0:00:40]} Qf3 {[%emt 0:01:37]} 33. Qe7 {[%emt 0:00:32]} Rxb2 {[%emt 0:02:05]} 34. Qg5+ {[%emt 0:00:21]} Kf8 {[%emt 0:01:14]} 35. Qh6+ {[%emt 0:00:29]} Ke8 {[%emt 0:00:27]} 36. Qh8+ {[%emt 0:00:39]} Kd7 {[%emt 0:00:19]} 37. Rd1+ {[%emt 0:00:13]} Qxd1# {[%emt 0:00:13]} 0-1

[Event "Kragero Resort B 2020"]
[Site "Kragero"]
[Date "2020.02.19"]
[Round "2.1"]
[White "Lystad, Maximilian L"]
[Black "Olsen, William Alexander"]
[Result "1-0"]
[ECO "A23"]
[WhiteElo "1710"]
[BlackElo "1862"]
[Annotator "NA RC"]
[PlyCount "115"]
[EventDate "2020.02.19"]
[EventType "swiss"]
[EventCountry "NOR"]
[SourceTitle "playchess.com"]
[Source "ChessBase"]
[SourceQuality "1"]
[TimeControl "5400+30"]

{[%evp 19,114,-64,32767,-71,-99,-90,-90,-127,32767,-152,-28,-10,103,0,0,-50,-57,-61,-64,-60,-33,-85,32767,-107,-54,-58,-56,-57,-32,-31,32767,32767,-24,-5,-18,-19,-18,-18,0,-33,-40,-110,-85,-81,-97,-75,-99,32767,32767,-96,32767,32767,32767,32767,32767,32767,32767,32767,32767,32767,32767,32767,32767,32767,32767,32767,32767,0,32767,32767,32767,32767,1277,518,832,10428,283,522,826,1482,977,1324,1886,32767,32767,32767,32767,32767,1779,12848,1802,29975,29976,29976,29980,29978,29980]} 1. c4 {[%emt 0:00:00]} e5 {[%emt 0:00:00]} 2. g3 {[%emt 0:00:00]} Nf6 {[%emt 0:00:00]} 3. Bg2 {[%emt 0:00:00]} Bc5 {[%emt 0:00:00]} 4. Nc3 {[%emt 0:00:05]} c6 {[%emt 0:00:07]} 5. d3 {[%emt 0:01:42]} d5 {[%emt 0:02:21]} 6. Nf3 {[%emt 0:01:38] A23: English Opening: 1...e5 2 Nc3 Nf6 3 g3 c6.} dxc4 {[%emt 0:02:54] [#]} 7. Nxe5 $146 {[%emt 0:01:04]} ({Predecessor:} 7. dxc4 Qxd1+ 8. Nxd1 Bb4+ 9. Bd2 Bxd2+ 10. Kxd2 Nbd7 11. Nc3 O-O 12. h3 Re8 13. Ke3 {½-½ (42) Popchev,M (2444)-Plenkovic,Z (2354) Zagreb 2009}) 7... Bxf2+ {[%emt 0:00:36]} 8. Kxf2 {[%emt 0:04:44]} Qd4+ {[%emt 0:00:09]} 9. e3 {[%emt 0:00:59]} Qxe5 {[%emt 0:00:12]} 10. d4 {[%emt 0:05:54]} Qe7 {[%emt 0:07:41]} 11. h3 {[%emt 0:01:56]} Na6 {[%emt 0:13:36]} 12. Qe2 {[%emt 0:03:04] [#]} Be6 $1 {[%emt 0:03:25]} 13. b3 {[%emt 0:01:28]} cxb3 {[%emt 0:14:40]} 14. axb3 {[%emt 0:06:52]} Nd5 {[%emt 0:03:50]} (14... O-O $17 15. Ba3 Nb4) 15. Nxd5 {[%emt 0:00:22]} cxd5 {[%emt 0:00:37]} (15... Bxd5 $15 {stays ahead.} 16. Bxd5 cxd5) 16. Qb5+ {[%emt 0:00:23]} ({Better is} 16. Ba3 $14 Qf6+ 17. Kg1) 16... Qd7 {[%emt 0:00:17]} 17. Qxd7+ {[%emt 0:02:32]} Kxd7 {[%emt 0:00:54]} 18. Ba3 {[%emt 0:00:04]} Rhc8 {[%emt 0:09:18]} 19. Rhc1 {[%emt 0:01:46]} f5 {[%emt 0:12:52]} 20. Bc5 {[%emt 0:03:45]} Nxc5 {[%emt 0:05:35]} 21. Rxc5 {[%emt 0:01:54]} Kd6 {[%emt 0:01:01]} (21... Rxc5 $17 22. dxc5 a5) 22. Raa5 {[%emt 0:04:49]} Rxc5 {[%emt 0:02:37]} 23. dxc5+ {[%emt 0:00:04]} Kc7 {[%emt 0:01:33]} 24. b4 {[%emt 0:01:19]} a6 {[%emt 0:02:33]} 25. Ke2 {[%emt 0:10:02]} Rd8 {[%emt 0:04:05]} 26. Kd3 $1 {[%emt 0:00:23]} Bd7 {[%emt 0:00:44]} 27. Kd4 {[%emt 0:00:15]} Bc6 {[%emt 0:00:55]} 28. Ra2 {[%emt 0:00:22]} Kd7 {[%emt 0:01:01]} 29. Ke5 {[%emt 0:01:25]} Re8+ {[%emt 0:01:32]} 30. Kf4 {[%emt 0:03:14]} (30. Kd4 $11 {remains equal.}) 30... Ke6 {[%emt 0:00:51]} 31. h4 {[%emt 0:01:05]} Kf6 {[%emt 0:00:41]} 32. Rd2 {[%emt 0:00:16]} Re5 {[%emt 0:04:51]} 33. Rd4 {[%emt 0:01:46]} g6 {[%emt 0:00:32]} 34. Kf3 {[%emt 0:03:52]} h6 {[%emt 0:03:18]} 35. Kf2 {[%emt 0:00:45]} g5 {[%emt 0:00:20]} 36. Bf3 {[%emt 0:00:30]} Ke6 {[%emt 0:01:20]} 37. g4 {[%emt 0:00:32]} gxh4 {[%emt 0:00:58]} 38. gxf5+ {[%emt 0:00:09]} Rxf5 {[%emt 0:00:09]} 39. Rxh4 {[%emt 0:00:38]} d4 {[%emt 0:00:40]} 40. e4 {[%emt 0:00:07]} Rf6 {[%emt 0:00:11]} 41. Ke2 {[%emt 0:00:42]} Bb5+ {[%emt 0:00:24]} 42. Kf2 {[%emt 0:00:19]} d3 {[%emt 0:00:25]} 43. Ke3 {[%emt 0:00:44]} Rxf3+ {[%emt 0:01:13]} 44. Kxf3 {[%emt 0:00:07]} d2 {[%emt 0:00:06]} 45. Rxh6+ {[%emt 0:00:10]} Ke5 {[%emt 0:00:06]} 46. Rd6 {[%emt 0:00:15]} Bc6 {[%emt 0:00:22]} 47. Rxd2 Bxe4+ {[%emt 0:00:01]} 48. Ke3 {[%emt 0:00:52]} Bc6 {[%emt 0:00:04]} 49. Rd6 {[%emt 0:00:31]} Bh1 {[%emt 0:00:29]} 50. Kd3 {[%emt 0:01:10]} Bg2 $2 {[%emt 0:00:19]} (50... Bd5 51. Rh6 Bc6) 51. Kc3 {[%emt 0:01:20]} Bf1 {[%emt 0:01:29]} 52. Kb3 {[%emt 0:00:58]} Bb5 {[%emt 0:00:11]} 53. Rb6 {[%emt 0:01:44]} Kd5 {[%emt 0:01:22]} 54. Rxb7 {[%emt 0:00:20]} Kc6 {[%emt 0:00:36]} 55. Rb6+ {[%emt 0:00:10]} Kd5 {[%emt 0:00:06]} 56. Rd6+ {[%emt 0:04:03]} Ke5 {[%emt 0:00:16]} 57. Ka3 {[%emt 0:00:59]} Bc4 {[%emt 0:00:49]} 58. Ka4 {[%emt 0:00:40] Kd5} 1-0

[Event "Kragero Resort B 2020"]
[Site "Kragero"]
[Date "2020.02.19"]
[Round "2.2"]
[White "Skaslien, Ingrid"]
[Black "Shehzad, Alisha"]
[Result "1-0"]
[ECO "E48"]
[WhiteElo "1847"]
[BlackElo "1705"]
[Annotator "NA RC"]
[PlyCount "51"]
[EventDate "2020.02.19"]
[EventType "swiss"]
[EventCountry "NOR"]
[SourceTitle "playchess.com"]
[Source "ChessBase"]
[SourceQuality "1"]
[TimeControl "5400+30"]

{[%evp 16,51,38,32767,32767,32767,46,51,49,24,101,113,97,90,90,84,94,97,198,175,220,231,411,160,239,32767,32767,32767,460,423,609,642,32767,32767,804,855,897,993]} 1. d4 {[%emt 0:00:00]} Nf6 {[%emt 0:02:59]} 2. c4 {[%emt 0:00:00]} e6 {[%emt 0:00:12]} 3. Nc3 {[%emt 0:00:03]} Bb4 {[%emt 0:00:05]} 4. e3 {[%emt 0:00:21]} O-O {[%emt 0:00:04]} 5. Bd3 {[%emt 0:01:29]} d5 {[%emt 0:00:30]} 6. cxd5 {[%emt 0:03:21]} exd5 {[%emt 0:00:55]} 7. Bd2 {[%emt 0:01:11] E48: Nimzo-Indian: Rubinstein: 5 Bd3 d5 including 6 Ne2, but excluding 6 a3.} c6 {[%emt 0:03:47]} 8. Nge2 {[%emt 0:01:27]} Bg4 {[%emt 0:08:09] [#]} 9. f3 $146 {[%emt 0:03:14]} ({Predecessor:} 9. e4 Bxe2 10. Qxe2 Bxc3 11. Bxc3 dxe4 12. Bxe4 Nxe4 13. Qxe4 Re8 14. Qe5 Rxe5+ 15. dxe5 {1-0 (29) Holmquist,M (572)-Nistri,P (899) LSS email 2011}) 9... Be6 {[%emt 0:02:57]} 10. O-O {[%emt 0:02:23]} Nbd7 {[%emt 0:01:52]} 11. a3 {[%emt 0:03:14]} Be7 {[%emt 0:02:21]} 12. e4 {[%emt 0:09:34]} c5 {[%emt 0:04:51]} (12... dxe4 $11 {keeps the balance.} 13. fxe4 Nb6) 13. e5 {[%emt 0:01:19]} Ne8 {[%emt 0:02:18]} 14. Be3 {[%emt 0:05:44]} cxd4 {[%emt 0:04:28]} 15. Bxd4 {[%emt 0:01:00]} Bc5 {[%emt 0:03:31]} 16. f4 {[%emt 0:05:52]} f5 {[%emt 0:06:07]} (16... g6 $16 {is a better defense.}) 17. b4 {[%emt 0:08:39]} Bxd4+ {[%emt 0:02:41]} 18. Nxd4 {[%emt 0:00:09]} Qb6 $2 {[%emt 0:01:17]} (18... Nc7 {was necessary.} 19. Rf2 Qe8) 19. Nce2 $2 {[%emt 0:02:06]} (19. Bc2 $18 {has better winning chances.} Bf7 20. Bxf5) 19... Nc7 {[%emt 0:08:27]} (19... g6 {was necessary.} 20. Qc2 Ng7) 20. Kh1 {[%emt 0:01:09]} a5 {[%emt 0:03:55]} 21. Rc1 {[%emt 0:01:04]} Rae8 {[%emt 0:05:35]} 22. Qa4 {[%emt 0:02:17]} Na6 {[%emt 0:03:51]} (22... axb4 $142 23. Nxe6 Nxe6 24. Qxd7 Rd8) 23. Nxe6 {[%emt 0:04:42]} Qxe6 {[%emt 0:00:28]} 24. Qxa5 {[%emt 0:03:17]} Ra8 {[%emt 0:03:15]} 25. Nd4 {[%emt 0:03:21]} Qe7 {[%emt 0:05:30]} 26. Qxd5+ $18 {[%emt 0:00:28]} 1-0

[Event "Kragero Resort B 2020"]
[Site "Kragero"]
[Date "2020.02.19"]
[Round "2.3"]
[White "Johannessen, Martin T."]
[Black "Leonhardsen, Vebjorn Maanum"]
[Result "0-1"]
[ECO "D00"]
[WhiteElo "1663"]
[BlackElo "1845"]
[Annotator "NA RC"]
[PlyCount "90"]
[EventDate "2020.02.19"]
[EventType "swiss"]
[EventCountry "NOR"]
[SourceTitle "playchess.com"]
[Source "ChessBase"]
[SourceQuality "1"]
[TimeControl "5400+30"]

{[%evp 16,90,-24,-13,-18,32767,-2,-11,0,0,0,-12,0,-16,-18,-17,-15,32767,32767,-22,-12,-36,-25,-67,32767,32767,32767,-39,-45,-51,-40,-28,32767,-102,-92,-128,-118,-108,-115,-140,-128,-232,-201,32767,32767,32767,32767,32767,32767,-267,-264,-270,-254,-275,-250,-297,-263,-245,-265,-262,-243,-256,-287,32767,-325,32767,-403,32767,32767,32767,32767,32767,-1061,-764,-785,-762,-1307]} 1. d4 {[%emt 0:00:00]} d5 {[%emt 0:00:00]} 2. Nc3 {[%emt 0:00:00]} Nf6 {[%emt 0:00:18]} 3. Bf4 {[%emt 0:00:10]} c5 {[%emt 0:06:43]} 4. e3 {[%emt 0:01:30]} e6 {[%emt 0:01:15]} 5. Nb5 {[%emt 0:00:59]} Na6 {[%emt 0:00:43]} 6. Nf3 {[%emt 0:02:39] D00: 1 d4 d5: Unusual lines.} Be7 {[%emt 0:00:26]} 7. c3 {[%emt 0:07:27]} O-O {[%emt 0:00:38]} 8. Ne5 {[%emt 0:04:11]} Bd7 {[%emt 0:03:34] [#]} 9. Nxd7 $146 {[%emt 0:01:13]} ({Predecessor:} 9. a4 Bc6 10. Be2 Nd7 11. O-O Nxe5 12. Bxe5 c4 13. b3 Qd7 14. bxc4 dxc4 15. Bxc4 Bxg2 16. Bxe6 fxe6 17. Kxg2 {1-0 (64) Martinovic,S (2550)-Girya,O (2450) Tallinn 2016}) 9... Qxd7 {[%emt 0:00:39]} 10. a4 {[%emt 0:02:05]} Rfc8 {[%emt 0:09:04]} 11. Bd3 {[%emt 0:04:07]} Nb8 {[%emt 0:01:41]} 12. dxc5 {[%emt 0:10:45]} Bxc5 {[%emt 0:00:48]} 13. Nd4 {[%emt 0:02:57]} Nc6 {[%emt 0:02:46]} 14. Nxc6 {[%emt 0:03:30]} bxc6 {[%emt 0:00:31]} 15. b4 {[%emt 0:02:52]} Bd6 {[%emt 0:03:23]} 16. Bxd6 {[%emt 0:05:11]} Qxd6 {[%emt 0:00:05]} 17. O-O {[%emt 0:06:14]} a5 {[%emt 0:01:55]} 18. Rb1 {[%emt 0:09:03]} h6 {[%emt 0:01:54]} 19. f4 {[%emt 0:09:06]} axb4 {[%emt 0:03:18]} 20. cxb4 {[%emt 0:00:54]} Rcb8 {[%emt 0:03:26]} 21. b5 $1 {[%emt 0:03:21]} cxb5 {[%emt 0:03:32]} 22. axb5 {[%emt 0:02:00]} Qb6 {[%emt 0:00:30]} 23. Qe2 {[%emt 0:03:05]} Ra3 {[%emt 0:03:30]} 24. h3 {[%emt 0:08:15]} (24. Ra1 $15 Rc3 25. Rfc1) 24... Ne4 {[%emt 0:05:04]} 25. Bxe4 {[%emt 0:01:40]} Rxe3 {[%emt 0:02:08]} 26. Qf2 {[%emt 0:00:00]} Rxe4 {[%emt 0:00:26]} 27. Qxb6 {[%emt 0:00:00]} Rxb6 {[%emt 0:00:06]} 28. Rfc1 {[%emt 0:00:00]} (28. f5 $17) 28... Rxf4 {[%emt 0:12:51]} 29. Rc8+ {[%emt 0:00:19]} Kh7 {[%emt 0:00:16]} 30. Rc7 {[%emt 0:00:42]} d4 {[%emt 0:10:18]} 31. Rd7 {[%emt 0:07:04]} Rf5 {[%emt 0:00:31]} 32. Rxd4 {[%emt 0:01:48]} Rfxb5 {[%emt 0:00:21]} 33. Rxb5 {[%emt 0:00:40]} Rxb5 {[%emt 0:00:14]} 34. Kf2 {[%emt 0:00:16]} Rb3 {[%emt 0:00:09]} 35. Rf4 {[%emt 0:00:16]} Kg6 {[%emt 0:00:31]} 36. Rg4+ {[%emt 0:00:19]} Kf6 {[%emt 0:00:09]} 37. Rf4+ {[%emt 0:00:08]} Ke7 {[%emt 0:00:06]} 38. Rg4 {[%emt 0:00:05]} g6 {[%emt 0:01:01]} 39. Rc4 {[%emt 0:00:36]} h5 {[%emt 0:00:38]} 40. Rc7+ {[%emt 0:00:44]} Kf6 {[%emt 0:00:14]} 41. Rc6 {[%emt 0:00:17]} Kf5 {[%emt 0:00:26]} 42. Rc7 {[%emt 0:00:33]} f6 {[%emt 0:00:15]} 43. Rc5+ {[%emt 0:00:19]} e5 {[%emt 0:00:09]} 44. Rc6 {[%emt 0:00:16]} h4 {[%emt 0:01:09]} 45. Rc4 {[%emt 0:01:47]} e4 $19 {[%emt 0:01:51]} 0-1